[Event "*** Titled Tuesday 3|2 Blitz (Late)"]
[Site "Chess.com"]
[Date "2017.01.03"]
[Round "8"]
[White "Ez_Chess2016"]
[Black "SabinaFoisor"]
[Result "1-0"]
[WhiteElo "1988"]
[BlackElo "2170"]
[TimeControl "180+2"]
[EndTime "18:37:47 PST"]
[Termination "Ez_Chess2016 won on time"]

1. e4 {[%clk 0:03:01.9]} 1... e5 {[%clk 0:03:00.6]} 2. Nf3 {[%clk 0:02:46.2]}
2... Nc6 {[%clk 0:03:00.7]} 3. d4 {[%clk 0:02:46.1]} 3... exd4 {[%clk
0:03:00.6]} 4. Bc4 {[%clk 0:02:44.1]} 4... Nf6 {[%clk 0:02:52.8]} 5. e5 {[%clk
0:02:45]} 5... d5 {[%clk 0:02:53]} 6. Bb5 {[%clk 0:02:45.7]} 6... Ne4 {[%clk
0:02:53.3]} 7. Nxd4 {[%clk 0:02:46.4]} 7... Bc5 {[%clk 0:02:53.8]} 8. Be3 {[%clk
0:02:42.2]} 8... O-O {[%clk 0:02:40.6]} 9. Bxc6 {[%clk 0:02:41.6]} 9... bxc6
{[%clk 0:02:29.8]} 10. O-O {[%clk 0:02:34.2]} 10... Ba6 {[%clk 0:02:26.1]} 11.
Re1 {[%clk 0:02:19.4]} 11... Qh4 {[%clk 0:02:18.7]} 12. Nc3 {[%clk 0:02:11.3]}
12... Nxc3 {[%clk 0:02:02.4]} 13. bxc3 {[%clk 0:02:13.2]} 13... Bxd4 {[%clk
0:02:00.7]} 14. cxd4 {[%clk 0:01:48.8]} 14... Rab8 {[%clk 0:01:59.1]} 15. f4
{[%clk 0:01:46.2]} 15... Bc8 {[%clk 0:01:52.4]} 16. Qd2 {[%clk 0:01:33.4]} 16...
Bf5 {[%clk 0:01:50.6]} 17. Bf2 {[%clk 0:01:04.4]} 17... Qg4 {[%clk 0:01:44.6]}
18. h3 {[%clk 0:01:02.6]} 18... Qg6 {[%clk 0:01:44.8]} 19. Kh2 {[%clk
0:00:54.2]} 19... Rb2 {[%clk 0:01:38.8]} 20. g4 {[%clk 0:00:43.4]} 20... Bxg4
{[%clk 0:01:11.4]} 21. hxg4 {[%clk 0:00:39]} 21... Rxc2 {[%clk 0:01:11]} 22. Qe3
{[%clk 0:00:28]} 22... Qxg4 {[%clk 0:01:11.2]} 23. Rg1 {[%clk 0:00:17]} 23...
Qh5+ {[%clk 0:01:10.9]} 24. Kg2 {[%clk 0:00:17.9]} 24... Rb8 {[%clk 0:01:08.9]}
25. Rab1 {[%clk 0:00:15]} 25... Qg6+ {[%clk 0:01:01.6]} 26. Qg3 {[%clk
0:00:12.8]} 26... Rxf2+ {[%clk 0:00:56.9]} 27. Kxf2 {[%clk 0:00:13.1]} 27...
Qc2+ {[%clk 0:00:54.3]} 28. Kf3 {[%clk 0:00:14.1]} 28... Qd3+ {[%clk 0:00:52.7]}
29. Kg2 {[%clk 0:00:11.6]} 29... Qxb1 {[%clk 0:00:39.4]} 30. Rxb1 {[%clk
0:00:12]} 30... Rxb1 {[%clk 0:00:41.3]} 31. Qg5 {[%clk 0:00:11.3]} 31... h6
{[%clk 0:00:41.5]} 32. Qd8+ {[%clk 0:00:12.1]} 32... Kh7 {[%clk 0:00:42.8]} 33.
a3 {[%clk 0:00:08.9]} 33... Rb2+ {[%clk 0:00:39.6]} 34. Kf1 {[%clk 0:00:09.4]}
34... Rb3 {[%clk 0:00:40.1]} 35. Qe7 {[%clk 0:00:09.4]} 35... Rf3+ {[%clk
0:00:39.3]} 36. Ke2 {[%clk 0:00:10.5]} 36... Rxf4 {[%clk 0:00:41.1]} 37. Ke3
{[%clk 0:00:11.8]} 37... Re4+ {[%clk 0:00:41.3]} 38. Kd3 {[%clk 0:00:12.7]}
38... Kg6 {[%clk 0:00:36]} 39. Qxc7 {[%clk 0:00:13.5]} 39... h5 {[%clk
0:00:35.8]} 40. Qxc6+ {[%clk 0:00:14.5]} 40... f6 {[%clk 0:00:33.5]} 41. Qxd5
{[%clk 0:00:14.7]} 41... Rg4 {[%clk 0:00:32.8]} 42. e6 {[%clk 0:00:13.2]} 42...
Rg3+ {[%clk 0:00:31.1]} 43. Kc4 {[%clk 0:00:13.9]} 43... Re3 {[%clk 0:00:31.8]}
44. Qd7 {[%clk 0:00:12.8]} 44... h4 {[%clk 0:00:32.2]} 45. e7 {[%clk 0:00:13.9]}
45... h3 {[%clk 0:00:33]} 46. e8=Q+ {[%clk 0:00:14]} 46... Rxe8 {[%clk
0:00:33.6]} 47. Qxe8+ {[%clk 0:00:15.9]} 47... Kg5 {[%clk 0:00:34.6]} 48. Qh8
{[%clk 0:00:16.5]} 48... Kg4 {[%clk 0:00:32.6]} 49. Qxg7+ {[%clk 0:00:16.6]}
49... Kf3 {[%clk 0:00:33]} 50. Qxf6+ {[%clk 0:00:17.1]} 50... Kg2 {[%clk
0:00:34.4]} 51. Qg5+ {[%clk 0:00:17.8]} 51... Kh1 {[%clk 0:00:34.7]} 52. d5
{[%clk 0:00:19.2]} 52... h2 {[%clk 0:00:36]} 53. Qh4 {[%clk 0:00:18.3]} 53... a5
{[%clk 0:00:36]} 54. Qxh2+ {[%clk 0:00:18.2]} 54... Kxh2 {[%clk 0:00:37.9]} 55.
d6 {[%clk 0:00:20.1]} 55... Kg3 {[%clk 0:00:39.1]} 56. d7 {[%clk 0:00:21.9]}
56... Kf3 {[%clk 0:00:41]} 57. d8=Q {[%clk 0:00:23.4]} 1-0

[Event "*** Titled Tuesday 3|2 Blitz (Late)"]
[Site "Chess.com"]
[Date "2017.01.03"]
[Round "8"]
[White "TrickyTrapChess"]
[Black "Dr-Bassem"]
[Result "0-1"]
[WhiteElo "2167"]
[BlackElo "2637"]
[TimeControl "180+2"]
[EndTime "18:38:40 PST"]
[Termination "Dr-Bassem won by resignation"]

1. d4 {[%clk 0:03:02]} 1... f5 {[%clk 0:02:58.7]} 2. Nc3 {[%clk 0:03:00.6]} 2...
Nf6 {[%clk 0:02:58.2]} 3. Bg5 {[%clk 0:02:59.9]} 3... d5 {[%clk 0:02:59.7]} 4.
Bxf6 {[%clk 0:02:59.9]} 4... exf6 {[%clk 0:03:01.6]} 5. e3 {[%clk 0:03:00]} 5...
Be6 {[%clk 0:03:02.4]} 6. Bd3 {[%clk 0:02:55.6]} 6... Nc6 {[%clk 0:02:58.2]} 7.
Nge2 {[%clk 0:02:54.2]} 7... g6 {[%clk 0:02:57]} 8. Nf4 {[%clk 0:02:50.8]} 8...
Bf7 {[%clk 0:02:57.3]} 9. h4 {[%clk 0:02:48.8]} 9... Qd7 {[%clk 0:02:56.4]} 10.
Qe2 {[%clk 0:02:45.3]} 10... h5 {[%clk 0:02:50.9]} 11. O-O-O {[%clk 0:02:43.5]}
11... Ne7 {[%clk 0:02:50.4]} 12. f3 {[%clk 0:02:37.4]} 12... O-O-O {[%clk
0:02:43.9]} 13. Kb1 {[%clk 0:02:30.4]} 13... Bh6 {[%clk 0:02:42.9]} 14. Bb5
{[%clk 0:02:17.1]} 14... c6 {[%clk 0:02:42.9]} 15. Ba4 {[%clk 0:02:17.1]} 15...
Kb8 {[%clk 0:02:35.4]} 16. Nd3 {[%clk 0:02:14]} 16... Nc8 {[%clk 0:02:35.3]} 17.
Nc5 {[%clk 0:02:12.7]} 17... Qe7 {[%clk 0:02:36.2]} 18. e4 {[%clk 0:02:05.6]}
18... fxe4 {[%clk 0:02:36.4]} 19. fxe4 {[%clk 0:02:05.1]} 19... dxe4 {[%clk
0:02:37.3]} 20. Qxe4 {[%clk 0:02:05.4]} 20... Qxe4 {[%clk 0:02:34.8]} 21. N3xe4
{[%clk 0:02:06.5]} 21... f5 {[%clk 0:02:35.9]} 22. Nc3 {[%clk 0:02:03.1]} 22...
Be3 {[%clk 0:02:27.1]} 23. Bb3 {[%clk 0:02:00.4]} 23... Bxb3 {[%clk 0:02:17.6]}
24. Nxb3 {[%clk 0:02:01.5]} 24... Nb6 {[%clk 0:02:15.3]} 25. a4 {[%clk
0:01:47.4]} 25... Rhe8 {[%clk 0:02:10.1]} 26. a5 {[%clk 0:01:36.7]} 26... Nc4
{[%clk 0:02:10.9]} 27. d5 {[%clk 0:01:34.9]} 27... c5 {[%clk 0:02:02.9]} 28. Na4
{[%clk 0:01:24.6]} 28... b6 {[%clk 0:01:59.1]} 29. axb6 {[%clk 0:01:25.1]} 29...
axb6 {[%clk 0:02:01]} 30. Rh3 {[%clk 0:01:22.8]} 30... f4 {[%clk 0:01:46.1]} 31.
Nc3 {[%clk 0:01:19.9]} 31... Nd6 {[%clk 0:01:40.7]} 32. Rf3 {[%clk 0:01:11.3]}
32... Nf5 {[%clk 0:01:36.9]} 33. Rh1 {[%clk 0:01:10.6]} 33... Kb7 {[%clk
0:01:34.4]} 34. Nc1 {[%clk 0:00:56.7]} 34... Rf8 {[%clk 0:00:52.9]} 35. Nd3
{[%clk 0:00:54.1]} 35... Nd4 {[%clk 0:00:48.6]} 36. Rff1 {[%clk 0:00:54.2]}
36... Rde8 {[%clk 0:00:41.8]} 37. Rd1 {[%clk 0:00:50]} 37... c4 {[%clk
0:00:34.7]} 38. Nb4 {[%clk 0:00:47.4]} 38... Ra8 {[%clk 0:00:25.4]} 39. Rhf1
{[%clk 0:00:42.6]} 39... Ra5 {[%clk 0:00:23]} 40. Rfe1 {[%clk 0:00:40]} 40...
Rfa8 {[%clk 0:00:21.9]} 41. b3 {[%clk 0:00:39.7]} 41... cxb3 {[%clk 0:00:18.3]}
42. Rxe3 {[%clk 0:00:37.8]} 42... fxe3 {[%clk 0:00:05.2]} 43. Rxd4 {[%clk
0:00:39.1]} 43... Ra1+ {[%clk 0:00:05.5]} 44. Kb2 {[%clk 0:00:39.7]} 44... Rg1
{[%clk 0:00:04.3]} 45. Kxb3 {[%clk 0:00:38.5]} 45... Re8 {[%clk 0:00:05.1]} 46.
Re4 {[%clk 0:00:36.3]} 46... Rxe4 {[%clk 0:00:05.4]} 47. Nxe4 {[%clk 0:00:37.5]}
47... e2 {[%clk 0:00:06.8]} 48. Nd3 {[%clk 0:00:35.8]} 48... e1=Q {[%clk
0:00:07]} 49. Nxe1 {[%clk 0:00:37]} 49... Rxe1 {[%clk 0:00:08.9]} 50. Nd6+
{[%clk 0:00:20.8]} 50... Kc7 {[%clk 0:00:09.2]} 51. Nf7 {[%clk 0:00:22.5]} 51...
Re2 {[%clk 0:00:08.3]} 52. d6+ {[%clk 0:00:19.7]} 52... Kc6 {[%clk 0:00:08.6]}
53. g3 {[%clk 0:00:21]} 53... Re3+ {[%clk 0:00:08.4]} 54. c3 {[%clk 0:00:22.9]}
54... Rxg3 {[%clk 0:00:08.8]} 55. Kc4 {[%clk 0:00:24.8]} 55... Rg4+ {[%clk
0:00:09.6]} 56. Kd3 {[%clk 0:00:26]} 56... Rxh4 {[%clk 0:00:10.6]} 57. c4 {[%clk
0:00:26]} 57... Kc5 {[%clk 0:00:07.1]} 58. Ke3 {[%clk 0:00:15.7]} 58... Rd4
{[%clk 0:00:05.5]} 59. Nd8 {[%clk 0:00:15]} 59... Rxd6 {[%clk 0:00:04.3]} 60.
Nb7+ {[%clk 0:00:16.9]} 60... Kc6 {[%clk 0:00:05.5]} 61. Nxd6 {[%clk 0:00:18.7]}
61... Kxd6 {[%clk 0:00:07.3]} 62. Kd4 {[%clk 0:00:20.6]} 62... g5 {[%clk
0:00:08.1]} 0-1

[Event "*** Titled Tuesday 3|2 Blitz (Late)"]
[Site "Chess.com"]
[Date "2017.01.03"]
[Round "8"]
[White "Elshan1985"]
[Black "Genghis_K"]
[Result "1-0"]
[WhiteElo "2615"]
[BlackElo "2721"]
[TimeControl "180+2"]
[EndTime "18:39:24 PST"]
[Termination "Elshan1985 won by resignation"]

1. d4 {[%clk 0:03:02]} 1... Nf6 {[%clk 0:03:01.1]} 2. Nf3 {[%clk 0:03:03.2]}
2... g6 {[%clk 0:03:01.4]} 3. c4 {[%clk 0:03:04.1]} 3... Bg7 {[%clk 0:03:02.9]}
4. Nc3 {[%clk 0:03:05.7]} 4... O-O {[%clk 0:03:04.6]} 5. e4 {[%clk 0:03:06.9]}
5... d6 {[%clk 0:03:06.3]} 6. Be2 {[%clk 0:03:08.5]} 6... e5 {[%clk 0:03:07.9]}
7. O-O {[%clk 0:03:10.1]} 7... Nc6 {[%clk 0:03:09.5]} 8. d5 {[%clk 0:03:11.2]}
8... Ne7 {[%clk 0:03:11.2]} 9. a4 {[%clk 0:03:12.8]} 9... a5 {[%clk 0:03:09.3]}
10. b3 {[%clk 0:03:12.6]} 10... Nd7 {[%clk 0:03:09.6]} 11. Ne1 {[%clk 0:03:12]}
11... f5 {[%clk 0:03:09.7]} 12. Nd3 {[%clk 0:03:13.6]} 12... fxe4 {[%clk
0:03:04.4]} 13. Nxe4 {[%clk 0:03:13.7]} 13... Nf5 {[%clk 0:03:05.6]} 14. Bb2
{[%clk 0:03:09.2]} 14... Nf6 {[%clk 0:03:06.3]} 15. Nxf6+ {[%clk 0:02:58.6]}
15... Bxf6 {[%clk 0:03:00.1]} 16. Qd2 {[%clk 0:02:56.1]} 16... e4 {[%clk
0:02:49.9]} 17. Bxf6 {[%clk 0:02:46.8]} 17... Qxf6 {[%clk 0:02:49.3]} 18. Nb2
{[%clk 0:02:40.8]} 18... Nh4 {[%clk 0:02:27.7]} 19. Rac1 {[%clk 0:02:29.6]}
19... Nf3+ {[%clk 0:01:40.1]} 20. Bxf3 {[%clk 0:01:14.9]} 20... exf3 {[%clk
0:01:40.6]} 21. Rc3 {[%clk 0:01:14.4]} 21... fxg2 {[%clk 0:01:36.6]} 22. Re1
{[%clk 0:01:15.3]} 22... Bf5 {[%clk 0:01:31.4]} 23. Rce3 {[%clk 0:01:09]} 23...
Rf7 {[%clk 0:01:31.4]} 24. Nd1 {[%clk 0:01:06.3]} 24... Raf8 {[%clk 0:01:31.7]}
25. Qxa5 {[%clk 0:01:04.8]} 25... Bc2 {[%clk 0:01:28]} 26. R3e2 {[%clk
0:00:54.1]} 26... Bxb3 {[%clk 0:01:22.6]} 27. Ne3 {[%clk 0:00:54.4]} 27... Qh4
{[%clk 0:01:16.2]} 28. Qb4 {[%clk 0:00:40.8]} 28... Bxa4 {[%clk 0:00:31.2]} 29.
Qxa4 {[%clk 0:00:41.5]} 29... Rxf2 {[%clk 0:00:32.9]} 30. Qc2 {[%clk 0:00:41.1]}
30... R2f3 {[%clk 0:00:18.6]} 31. Nxg2 {[%clk 0:00:41.3]} 31... Qd4+ {[%clk
0:00:18.3]} 32. Ne3 {[%clk 0:00:40.5]} 32... R3f4 {[%clk 0:00:18]} 33. Kh1
{[%clk 0:00:34.2]} 33... b6 {[%clk 0:00:19.2]} 34. Rd1 {[%clk 0:00:32]} 34...
Qf6 {[%clk 0:00:17.7]} 35. Rg1 {[%clk 0:00:29.8]} 35... Rh4 {[%clk 0:00:17.7]}
36. Rf1 {[%clk 0:00:21.5]} 36... Rf4 {[%clk 0:00:11]} 37. Rxf4 {[%clk
0:00:22.3]} 37... Qxf4 {[%clk 0:00:12.9]} 38. Qd1 {[%clk 0:00:17.8]} 38... Qe4+
{[%clk 0:00:09.4]} 39. Kg1 {[%clk 0:00:18.4]} 39... Re8 {[%clk 0:00:10.9]} 40.
Qe1 {[%clk 0:00:18.1]} 40... Qd4 {[%clk 0:00:10.9]} 41. Qf2 {[%clk 0:00:18.1]}
41... Qe4 {[%clk 0:00:11.3]} 42. Kf1 {[%clk 0:00:17.8]} 42... Qh1+ {[%clk
0:00:11.2]} 43. Qg1 {[%clk 0:00:18.6]} 43... Qf3+ {[%clk 0:00:10.2]} 44. Ke1
{[%clk 0:00:19.6]} 44... Ra8 {[%clk 0:00:11.1]} 45. Nd1 {[%clk 0:00:17.1]} 45...
Qf4 {[%clk 0:00:09.3]} 46. Qe3 {[%clk 0:00:17.5]} 46... Qh4+ {[%clk 0:00:10.3]}
47. Kd2 {[%clk 0:00:15.3]} 47... Qxc4 {[%clk 0:00:08.2]} 48. Qe6+ {[%clk
0:00:15.9]} 48... Kh8 {[%clk 0:00:09.2]} 49. Qf6+ {[%clk 0:00:17.5]} 49... Kg8
{[%clk 0:00:10.8]} 50. Qe6+ {[%clk 0:00:19.1]} 50... Kh8 {[%clk 0:00:10.1]} 51.
Nc3 {[%clk 0:00:20.3]} 51... Qf4+ {[%clk 0:00:09.9]} 52. Kc2 {[%clk 0:00:21.2]}
52... b5 {[%clk 0:00:10.2]} 53. Qe4 {[%clk 0:00:21.8]} 53... Qf6 {[%clk
0:00:09.1]} 54. Kb3 {[%clk 0:00:22.3]} 54... b4 {[%clk 0:00:06]} 55. Qxb4 {[%clk
0:00:22.3]} 55... Kg8 {[%clk 0:00:07.5]} 56. Ra2 {[%clk 0:00:22.5]} 56... Re8
{[%clk 0:00:08.3]} 57. Ra7 {[%clk 0:00:22.6]} 57... Qf8 {[%clk 0:00:09.3]} 58.
Rxc7 {[%clk 0:00:22.9]} 58... Rb8 {[%clk 0:00:10.7]} 59. Rb7 {[%clk 0:00:24.2]}
59... Ra8 {[%clk 0:00:12.3]} 60. Qe4 {[%clk 0:00:23.2]} 60... Re8 {[%clk
0:00:12.1]} 61. Qc4 {[%clk 0:00:24]} 61... Qf5 {[%clk 0:00:11.6]} 62. Qc7 {[%clk
0:00:24.4]} 62... Qf6 {[%clk 0:00:06.7]} 63. Qxh7+ {[%clk 0:00:24.9]} 63... Kf8
{[%clk 0:00:08.4]} 64. Qh6+ {[%clk 0:00:25.7]} 64... Kg8 {[%clk 0:00:09.8]} 65.
Qh7+ {[%clk 0:00:27]} 65... Kf8 {[%clk 0:00:11.1]} 66. Qd7 {[%clk 0:00:25.6]}
66... Rd8 {[%clk 0:00:06]} 67. Qc7 {[%clk 0:00:26.1]} 67... Re8 {[%clk
0:00:06.2]} 68. Rb8 {[%clk 0:00:27.4]} 68... Rxb8+ {[%clk 0:00:06.9]} 69. Qxb8+
{[%clk 0:00:29.3]} 69... Kg7 {[%clk 0:00:08.7]} 70. Qc7+ {[%clk 0:00:30.1]}
70... Kh6 {[%clk 0:00:10.2]} 71. Qc4 {[%clk 0:00:31.6]} 71... Qf2 {[%clk
0:00:09.9]} 72. h3 {[%clk 0:00:30.7]} 72... Qb6+ {[%clk 0:00:11.4]} 73. Qb4
{[%clk 0:00:31.3]} 73... Qe3 {[%clk 0:00:12.3]} 74. Qg4 {[%clk 0:00:31.7]} 74...
Qb6+ {[%clk 0:00:13.1]} 75. Kc4 {[%clk 0:00:32.7]} 75... Qa6+ {[%clk 0:00:13.8]}
76. Kd4 {[%clk 0:00:33.4]} 76... Qa7+ {[%clk 0:00:15.4]} 77. Kd3 {[%clk
0:00:34.7]} 77... Qa6+ {[%clk 0:00:16.9]} 78. Kd2 {[%clk 0:00:35.4]} 78... Qf1
{[%clk 0:00:15]} 79. Ne2 {[%clk 0:00:35.1]} 79... Qh1 {[%clk 0:00:11.5]} 80.
Qf4+ {[%clk 0:00:34.1]} 80... Kh7 {[%clk 0:00:07.2]} 81. Qxd6 {[%clk 0:00:35.4]}
81... Qxh3 {[%clk 0:00:08.3]} 82. Qxg6+ {[%clk 0:00:36.4]} 82... Kxg6 {[%clk
0:00:08.9]} 83. Nf4+ {[%clk 0:00:37.8]} 83... Kf5 {[%clk 0:00:10.4]} 84. Nxh3
{[%clk 0:00:39.4]} 84... Ke5 {[%clk 0:00:12]} 85. Nf4 {[%clk 0:00:41]} 1-0

[Event "*** Titled Tuesday 3|2 Blitz (Late)"]
[Site "Chess.com"]
[Date "2017.01.03"]
[Round "9"]
[White "macko06"]
[Black "Caminator2000"]
[Result "1-0"]
[WhiteElo "2322"]
[BlackElo "2240"]
[TimeControl "180+2"]
[EndTime "18:48:49 PST"]
[Termination "macko06 won by resignation"]

1. d4 {[%clk 0:03:02]} 1... Nf6 {[%clk 0:03:00.4]} 2. Nf3 {[%clk 0:03:01.9]}
2... e6 {[%clk 0:03:01.4]} 3. c4 {[%clk 0:03:00]} 3... c5 {[%clk 0:03:02.4]} 4.
d5 {[%clk 0:03:01.2]} 4... b5 {[%clk 0:03:03]} 5. Bg5 {[%clk 0:02:55.3]} 5...
exd5 {[%clk 0:03:00]} 6. cxd5 {[%clk 0:02:54.2]} 6... d6 {[%clk 0:03:00.7]} 7.
e4 {[%clk 0:02:52.1]} 7... a6 {[%clk 0:03:02]} 8. a4 {[%clk 0:02:49.3]} 8... Be7
{[%clk 0:03:03.2]} 9. axb5 {[%clk 0:02:47]} 9... Nxe4 {[%clk 0:02:48.8]} 10. Be3
{[%clk 0:02:46.7]} 10... O-O {[%clk 0:02:33]} 11. Bd3 {[%clk 0:02:44.2]} 11...
Nf6 {[%clk 0:02:33.3]} 12. Nc3 {[%clk 0:02:41.7]} 12... Bb7 {[%clk 0:02:33.8]}
13. O-O {[%clk 0:02:36.9]} 13... axb5 {[%clk 0:02:32.1]} 14. Rxa8 {[%clk
0:02:33.8]} 14... Bxa8 {[%clk 0:02:34]} 15. Bxb5 {[%clk 0:02:35.4]} 15... Nbd7
{[%clk 0:02:33.1]} 16. Re1 {[%clk 0:02:31.1]} 16... Nb6 {[%clk 0:02:30.4]} 17.
Bc6 {[%clk 0:02:28.7]} 17... Qc7 {[%clk 0:02:12.9]} 18. Bg5 {[%clk 0:02:26.9]}
18... h6 {[%clk 0:01:14.8]} 19. Bh4 {[%clk 0:02:21.3]} 19... Bxc6 {[%clk
0:01:01.1]} 20. dxc6 {[%clk 0:02:23.2]} 20... Rc8 {[%clk 0:01:02.2]} 21. Nb5
{[%clk 0:02:18.8]} 21... Qxc6 {[%clk 0:00:54]} 22. Na7 {[%clk 0:02:19.8]} 22...
Qb7 {[%clk 0:00:51]} 23. Nxc8 {[%clk 0:02:21.7]} 23... Nxc8 {[%clk 0:00:52.6]}
24. Bxf6 {[%clk 0:02:13.1]} 24... Bxf6 {[%clk 0:00:52.5]} 25. b4 {[%clk
0:02:01.2]} 25... Ne7 {[%clk 0:00:42.5]} 26. bxc5 {[%clk 0:02:00]} 26... dxc5
{[%clk 0:00:44.4]} 27. Qc2 {[%clk 0:01:58.9]} 27... Qc6 {[%clk 0:00:41.1]} 28.
Rc1 {[%clk 0:01:57.3]} 28... Nf5 {[%clk 0:00:34.4]} 29. Qxf5 {[%clk 0:01:55.1]}
1-0

[Event "*** Titled Tuesday 3|2 Blitz (Late)"]
[Site "Chess.com"]
[Date "2017.01.03"]
[Round "9"]
[White "Genghis_K"]
[Black "boredoldman"]
[Result "1-0"]
[WhiteElo "2725"]
[BlackElo "2524"]
[TimeControl "180+2"]
[EndTime "18:49:04 PST"]
[Termination "Genghis_K won by resignation"]

1. e4 {[%clk 0:03:02]} 1... c5 {[%clk 0:02:59.2]} 2. Nf3 {[%clk 0:03:03.6]} 2...
d6 {[%clk 0:03:00.5]} 3. d4 {[%clk 0:03:04.6]} 3... cxd4 {[%clk 0:03:02.4]} 4.
Nxd4 {[%clk 0:03:06.4]} 4... Nf6 {[%clk 0:03:04.1]} 5. Nc3 {[%clk 0:03:07.3]}
5... a6 {[%clk 0:03:05.8]} 6. Be3 {[%clk 0:03:08.2]} 6... e5 {[%clk 0:03:04.6]}
7. Nf3 {[%clk 0:03:09.1]} 7... Be7 {[%clk 0:03:03.4]} 8. Bc4 {[%clk 0:03:09.4]}
8... O-O {[%clk 0:03:03.7]} 9. O-O {[%clk 0:03:09.9]} 9... Be6 {[%clk
0:03:02.9]} 10. Bb3 {[%clk 0:03:06.5]} 10... Nc6 {[%clk 0:02:29.1]} 11. Qe2
{[%clk 0:03:03.5]} 11... Ng4 {[%clk 0:02:19]} 12. Nd5 {[%clk 0:03:00]} 12...
Nxe3 {[%clk 0:02:19.9]} 13. Nxe3 {[%clk 0:03:00.2]} 13... Rc8 {[%clk 0:02:13.8]}
14. Rfd1 {[%clk 0:03:01.4]} 14... Qc7 {[%clk 0:02:06.4]} 15. c3 {[%clk
0:03:02.8]} 15... Rfd8 {[%clk 0:01:52.5]} 16. Rd2 {[%clk 0:02:50.9]} 16... Bxb3
{[%clk 0:01:50.4]} 17. axb3 {[%clk 0:02:51.5]} 17... Bf8 {[%clk 0:01:51.6]} 18.
Nd5 {[%clk 0:02:48.4]} 18... Qb8 {[%clk 0:01:52.9]} 19. Nb6 {[%clk 0:02:49.1]}
19... Rc7 {[%clk 0:01:52.6]} 20. Rad1 {[%clk 0:02:50.7]} 20... Ne7 {[%clk
0:01:12.3]} 21. Nxe5 {[%clk 0:02:44.3]} 21... Nc6 {[%clk 0:01:01.6]} 22. Nf3
{[%clk 0:02:43]} 22... Re8 {[%clk 0:01:00.3]} 23. Nd5 {[%clk 0:02:41.6]} 23...
Rd7 {[%clk 0:01:01.2]} 24. b4 {[%clk 0:02:42]} 24... b5 {[%clk 0:01:02.2]} 25.
h4 {[%clk 0:02:42.5]} 25... Ne5 {[%clk 0:01:02.8]} 26. Nxe5 {[%clk 0:02:38.5]}
26... Rxe5 {[%clk 0:01:04.2]} 27. Nf6+ {[%clk 0:02:39.8]} 27... gxf6 {[%clk
0:01:01]} 28. Qg4+ {[%clk 0:02:41.3]} 28... Kh8 {[%clk 0:01:01.4]} 29. Qxd7
{[%clk 0:02:42.9]} 29... Rxe4 {[%clk 0:01:02.8]} 30. Qxf7 {[%clk 0:02:40.3]}
30... Qe8 {[%clk 0:00:55]} 31. Qxe8 {[%clk 0:02:35.2]} 31... Rxe8 {[%clk
0:00:56.9]} 32. Ra1 {[%clk 0:02:36.4]} 32... Ra8 {[%clk 0:00:57.4]} 33. Rd5
{[%clk 0:02:37.4]} 33... Re8 {[%clk 0:00:41.1]} 34. Kf1 {[%clk 0:02:37.2]} 34...
Kg7 {[%clk 0:00:33.8]} 35. Rxa6 {[%clk 0:02:36.9]} 35... Rd8 {[%clk 0:00:34.3]}
36. Ra7+ {[%clk 0:02:35]} 36... Kg6 {[%clk 0:00:33.8]} 37. h5+ {[%clk
0:02:36.4]} 37... Kh6 {[%clk 0:00:35.1]} 38. Rf7 {[%clk 0:02:36.4]} 38... Bg7
{[%clk 0:00:36]} 39. Rxb5 {[%clk 0:02:37.9]} 39... d5 {[%clk 0:00:33.2]} 40.
Rbb7 {[%clk 0:02:39.2]} 40... Rg8 {[%clk 0:00:34.5]} 41. Rxg7 {[%clk 0:02:40]}
41... Rxg7 {[%clk 0:00:35.5]} 42. Rxg7 {[%clk 0:02:41.9]} 42... Kxg7 {[%clk
0:00:37.2]} 43. b5 {[%clk 0:02:43.3]} 1-0

[Event "*** Titled Tuesday 3|2 Blitz (Late)"]
[Site "Chess.com"]
[Date "2017.01.03"]
[Round "9"]
[White "rithwik2002"]
[Black "MrReinberg"]
[Result "0-1"]
[WhiteElo "1766"]
[BlackElo "2301"]
[TimeControl "180+2"]
[EndTime "18:49:57 PST"]
[Termination "MrReinberg won by checkmate"]

1. e4 {[%clk 0:03:02]} 1... c5 {[%clk 0:03:00.2]} 2. Nf3 {[%clk 0:03:01.1]} 2...
g6 {[%clk 0:03:00.3]} 3. d4 {[%clk 0:02:52.8]} 3... cxd4 {[%clk 0:03:00.3]} 4.
Qxd4 {[%clk 0:02:54.7]} 4... Nf6 {[%clk 0:02:59.3]} 5. Nc3 {[%clk 0:02:55.9]}
5... Nc6 {[%clk 0:02:59.4]} 6. Qa4 {[%clk 0:02:55.3]} 6... d6 {[%clk 0:02:59.9]}
7. e5 {[%clk 0:02:53]} 7... dxe5 {[%clk 0:02:51.6]} 8. Nxe5 {[%clk 0:02:54.9]}
8... Bd7 {[%clk 0:02:40.2]} 9. Nxd7 {[%clk 0:02:54.8]} 9... Qxd7 {[%clk
0:02:40.2]} 10. Be3 {[%clk 0:02:56.3]} 10... Bg7 {[%clk 0:02:38.1]} 11. Be2
{[%clk 0:02:45.1]} 11... O-O {[%clk 0:02:35.9]} 12. Rd1 {[%clk 0:02:43.5]} 12...
Qc8 {[%clk 0:02:30.8]} 13. O-O {[%clk 0:02:43.1]} 13... a6 {[%clk 0:02:26.3]}
14. Qh4 {[%clk 0:02:41.7]} 14... Qf5 {[%clk 0:02:17.2]} 15. Rd2 {[%clk
0:02:26.4]} 15... Rad8 {[%clk 0:02:06.9]} 16. Rfd1 {[%clk 0:02:26.1]} 16... Rxd2
{[%clk 0:01:34.8]} 17. Rxd2 {[%clk 0:02:24.4]} 17... Qc8 {[%clk 0:01:36.7]} 18.
Bb6 {[%clk 0:02:13.3]} 18... Nd7 {[%clk 0:01:32.2]} 19. Be3 {[%clk 0:01:59.6]}
19... Nf6 {[%clk 0:01:32]} 20. Bb6 {[%clk 0:01:45.8]} 20... Nd7 {[%clk 0:01:29]}
21. Be3 {[%clk 0:01:45.8]} 21... Bf6 {[%clk 0:01:22.9]} 22. Qh3 {[%clk
0:01:16.4]} 22... Rd8 {[%clk 0:01:10.8]} 23. Bg4 {[%clk 0:01:09.3]} 23... e6
{[%clk 0:01:11.8]} 24. Bxe6 {[%clk 0:01:05.4]} 24... fxe6 {[%clk 0:01:07.1]} 25.
Qxe6+ {[%clk 0:01:07.3]} 25... Kh8 {[%clk 0:01:04.7]} 26. Bb6 {[%clk 0:00:30.9]}
26... Re8 {[%clk 0:00:53.3]} 27. Qxd7 {[%clk 0:00:21]} 27... Re1# {[%clk
0:00:50.9]} 0-1